bitfinex/quotes_ETHUSD_20241106
["timestamp","ask_amount","ask_price","bid_price","bid_amount"]
[1730906451030,3.75757,2661.3,2660.8,0.04733413]
[1730906451146,3.75757,2661.3,2660.6,4.34394413]
[1730906451147,4.56005,2661.9,2661.2,3.75762]
[1730906451359,3.75693,2661.8,2661.3,0.04651478]
[1730906451654,3.75693,2661.8,2661.1,3.75783]
[1730906451854,3.75693,2661.8,2661.4,0.04646815]
[1730906452091,3.75525,2663.0,2662.3,0.771]
[1730906452400,3.75498,2663.2,2662.4,0.04524211]
[1730906452401,7.51004,2663.1,2662.4,0.04524211]
[1730906452544,3.75586,2662.5,2662.4,0.04524211]
[1730906452739,3.75586,2662.5,2661.6,4.52804]
[1730906452983,7.51222,2662.4,2661.7,0.0466183]
[1730906453157,3.7561,2662.4,2661.7,0.0466183]
[1730906453353,3.7561,2662.4,2661.7,0.12174549]
[1730906453576,3.7557,2662.7,2661.9,3.7567]
[1730906453741,3.75537,2662.9,2662.0,3.83168213]
[1730906453941,3.75537,2662.9,2662.1,0.04509912]
[1730906454180,3.75553,2662.8,2662.1,0.04509912]
[1730906454386,0.375498,2663.1,2662.1,0.04509912]
[1730906454387,3.75568,2662.7,2662.1,0.04509912]
[1730906454549,3.75583,2662.6,2661.8,3.75679]
[1730906454759,3.75568,2662.7,2662.0,3.75656]
[1730906455066,3.75568,2662.7,2661.8,0.87496686]
[1730906455067,3.75506,2663.1,2662.2,0.771]
[1730906455290,3.75489,2663.2,2662.4,3.756]
[1730906455452,3.75489,2663.2,2662.4,4.584322]
[1730906455653,3.75482,2663.3,2662.5,3.80084559]
[1730906455985,4.56434,2663.5,2662.7,3.75557]
[1730906456284,3.75446,2663.5,2662.9,0.8202]
[1730906456648,3.75446,2663.5,2663.0,0.04440749]
[1730906457127,3.75379,2664.0,2663.0,0.04440749]
[1730906457128,3.75336,2664.3,2663.3,3.75468]
[1730906457389,3.75327,2664.4,2663.6,3.75431]
[1730906457541,3.75327,2664.4,2663.5,7.50873]
[1730906457542,3.75335,2664.3,2663.5,7.50873]
[1730906457750,3.75335,2664.3,2663.6,0.04349206]
[1730906458375,3.75335,2664.3,2663.6,3.79778206]
[1730906458645,3.75313,2664.5,2663.7,0.8301]
[1730906458883,7.07298,2664.6,2663.8,3.75394]
[1730906459094,7.07298,2664.6,2663.8,3.79712913]
[1730906459452,3.32,2664.6,2663.8,0.04318913]
[1730906459685,3.7535,2664.2,2663.8,0.04318913]
[1730906459902,3.32,2664.6,2663.8,0.04318913]
[1730906459903,3.32,2664.6,2664.0,3.75366]
[1730906460101,3.7524,2665.0,2664.1,3.79625557]
[1730906460402,3.75241,2665.0,2664.2,0.87345618]
[1730906460569,3.75212,2665.2,2664.2,0.7984]
[1730906460761,3.75185,2665.4,2664.6,3.75282]
[1730906461108,3.75178,2665.4,2664.8,0.7984]
[1730906461252,3.75241,2665.0,2664.7,0.04244418]
[1730906461454,0.8044,2664.9,2664.8,0.0425737]
[1730906461659,3.75241,2665.0,2664.8,0.0425737]
[1730906461985,0.8044,2665.3,2664.9,0.04248238]
[1730906462302,3.75234,2665.0,2664.9,0.04248238]
[1730906462458,3.75334,2664.3,2663.9,0.8072]
[1730906462656,3.7532,2664.4,2663.9,0.8072]
[1730906462876,3.7532,2664.4,2664.0,0.04340202]
[1730906463082,3.7532,2664.4,2663.9,0.8072]
[1730906463290,3.75419,2663.7,2663.4,0.7866]
[1730906464985,3.7561,2662.4,2662.0,0.7875]
[1730906465271,3.75577,2662.6,2662.0,4.54407]
[1730906465660,3.7559,2662.5,2662.0,0.7875]
[1730906465861,3.75611,2662.4,2662.0,0.7875]
[1730906466061,7.51224,2662.4,2662.0,0.7875]
[1730906466261,4.208585,2662.9,2661.7,0.8181]
[1730906466262,3.75643,2662.1,2661.7,0.8181]
[1730906466703,3.75672,2661.9,2661.7,0.8181]
[1730906466874,3.75696,2661.8,2661.4,0.8314]
[1730906467197,3.75713,2661.6,2661.4,0.8314]
[1730906467398,3.75701,2661.7,2661.1,0.751595]
[1730906467605,3.7575,2661.4,2661.0,0.7588]
[1730906467811,3.75784,2661.1,2660.5,0.7588]
[1730906467976,3.75784,2661.1,2659.5,0.05639147]
[1730906467977,0.7888,2661.3,2660.1,0.7588]
[1730906468174,3.75893,2660.4,2660.1,0.7588]
[1730906468500,3.75873,2660.5,2659.6,3.75985]
[1730906468501,0.7888,2660.5,2659.6,3.75985]
[1730906468707,3.75883,2660.4,2659.6,0.75764515]
[1730906469010,3.75898,2660.3,2659.6,0.07518986]
[1730906469162,3.75912,2660.2,2659.6,0.07518986]
[1730906469362,3.75912,2660.2,2659.6,0.38915813]
[1730906469896,3.75856,2660.6,2659.7,4.5625]
[1730906470109,3.75886,2660.4,2659.7,4.5625]
[1730906470307,3.75937,2660.1,2659.4,3.76021]
[1730906470512,3.75938,2660.1,2659.4,0.376021]
[1730906470802,3.75906,2660.3,2659.5,3.83527491]
[1730906471007,3.75873,2660.5,2659.5,0.07519491]
[1730906471191,3.75885,2660.4,2659.7,0.8192]
[1730906471395,3.75885,2660.4,2659.8,0.457916]
[1730906471593,3.75942,2660.0,2659.8,0.04556814]
[1730906472066,3.75983,2659.7,2659.3,0.8192]
[1730906472267,3.75955,2659.9,2659.3,0.8192]
[1730906472707,3.76862,2660.6,2659.3,0.8192]
[1730906472708,3.75929,2660.1,2659.4,3.83544084]
[1730906472883,3.75929,2660.1,2659.4,4.67695492]
[1730906473094,3.759,2660.3,2659.6,3.7599]
[1730906473292,3.759,2660.3,2659.6,0.0751931]
[1730906473495,3.75873,2660.5,2659.7,3.75982]
[1730906473814,3.7591,2660.3,2659.6,0.07518965]
[1730906473996,3.75911,2660.2,2659.8,0.04646826]
[1730906474178,3.75866,2660.6,2659.7,3.80630384]
[1730906474366,3.75893,2660.4,2659.9,0.04635082]
[1730906474710,0.7758,2661.2,2659.8,0.78]
[1730906474915,3.75886,2660.4,2660.0,0.04639896]
[1730906475259,3.75886,2660.4,2660.1,0.04609624]
[1730906475377,3.75911,2660.2,2660.1,0.04609624]
[1730906475581,3.75911,2660.2,2659.4,0.8312]
[1730906475582,3.75939,2660.0,2659.4,0.8312]
[1730906475776,3.75911,2660.2,2659.5,0.12180924]
[1730906476014,3.75954,2659.9,2659.5,0.04661528]
[1730906476307,3.7597,2659.8,2659.5,0.04661528]
[1730906476878,3.75942,2660.0,2659.5,0.04661528]
[1730906477095,3.75964,2659.9,2659.5,0.04661528]
[1730906477269,3.75918,2660.2,2659.5,0.04661528]
[1730906477605,3.75956,2659.9,2659.5,0.04661528]
[1730906477815,3.75969,2659.8,2659.5,0.04661528]
[1730906477971,0.811,2661.0,2659.5,0.04661528]
[1730906478180,3.75962,2659.9,2659.4,0.8312]
[1730906478374,3.75962,2659.9,2659.5,0.0455374]
[1730906478871,3.75984,2659.7,2659.5,0.0455374]
[1730906479181,3.75962,2659.9,2659.5,0.0455374]
[1730906479770,3.75991,2659.7,2659.5,0.0455374]
[1730906479972,0.375962,2659.9,2659.0,0.7885]
[1730906479973,3.76029,2659.4,2659.0,0.7885]
[1730906480304,0.7754,2659.8,2659.1,0.04621352]
[1730906480508,0.8028,2659.1,2658.1,0.9103881]
[1730906480715,3.76156,2658.5,2658.1,0.9103881]
[1730906480914,3.7618,2658.3,2658.2,0.0464508]
[1730906481223,3.76194,2658.2,2658.1,0.1282881]
[1730906481777,0.01,2658.2,2656.9,0.7505]
[1730906481980,1.17898,2658.3,2657.0,0.0474194]
[1730906482179,3.76274,2657.7,2656.8,3.76389]
[1730906482475,3.76305,2657.5,2656.9,0.04751169]
[1730906482920,3.7628,2657.6,2656.9,0.04751169]
[1730906483091,3.76269,2657.7,2656.9,0.04751169]
[1730906483293,3.76213,2658.1,2656.9,0.50369586]
[1730906483294,3.76295,2657.5,2656.9,0.50369586]
[1730906483487,3.76295,2657.5,2656.9,0.04751169]
[1730906483714,3.76335,2657.3,2656.4,7.5288]
[1730906483891,3.76339,2657.2,2656.5,0.90881655]
[1730906484106,3.76339,2657.2,2656.5,0.88133658]
[1730906484306,3.76329,2657.3,2656.5,0.95661081]
[1730906484516,7.5252,2657.8,2656.6,0.47209808]
[1730906484839,3.76303,2657.5,2656.7,0.04778005]
[1730906485404,7.52545,2657.7,2656.8,3.76383]
[1730906485614,3.76281,2657.6,2656.9,0.38868908]
[1730906485951,3.76309,2657.4,2657.0,0.04716906]
[1730906486152,3.76332,2657.3,2656.4,7.52885]
[1730906486437,3.76309,2657.4,2656.6,3.76409]
[1730906486739,3.76295,2657.5,2656.7,4.57687985]
[1730906488556,3.76284,2657.6,2656.9,3.81151949]
[1730906488708,3.76294,2657.5,2656.9,0.04778949]
[1730906489104,3.76284,2657.6,2656.9,0.04778949]
[1730906489417,3.76198,2658.2,2657.0,0.8233]
[1730906489620,3.7623,2658.0,2657.2,3.76326]
[1730906489833,3.7623,2658.0,2657.2,4.598267]
[1730906490019,7.52464,2658.0,2657.3,0.04711356]
[1730906490217,0.7995,2658.3,2657.3,0.04711356]
[1730906490218,3.76267,2657.7,2657.3,0.04711356]
[1730906490463,3.76223,2658.0,2657.3,0.04711356]
[1730906490660,4.56136,2658.3,2657.5,3.76285]
[1730906490880,3.76223,2658.0,2657.4,0.04612089]
[1730906491099,3.76245,2657.9,2657.6,0.04594759]
[1730906491389,3.76245,2657.9,2657.7,0.04586095]
[1730906491688,3.76223,2658.0,2657.3,3.7632]
[1730906491861,3.76223,2658.0,2657.8,0.04596013]
[1730906492058,3.76223,2658.0,2657.3,4.56919007]
[1730906492264,0.7995,2658.3,2657.3,4.56919007]
[1730906492265,3.7621,2658.1,2657.9,0.04609026]
[1730906492482,3.7621,2658.1,2657.4,3.76304]
[1730906492793,0.7995,2658.3,2657.4,0.0752537]
[1730906492946,0.7995,2658.3,2657.5,0.04649883]
[1730906493142,0.7995,2658.3,2657.0,3.76356]
[1730906493143,3.76259,2657.8,2657.0,3.76356]
[1730906493380,3.76259,2657.8,2657.1,0.04622607]
[1730906493578,7.52519,2657.8,2657.1,3.80968607]
[1730906493786,3.76259,2657.8,2657.1,0.93928797]
[1730906493945,3.76255,2657.8,2657.1,0.93928797]
[1730906494161,3.76224,2658.0,2657.3,3.76312]
[1730906494375,7.52524,2657.8,2657.4,0.04618289]
[1730906494587,7.52524,2657.8,2657.2,0.7504]
[1730906494588,3.76268,2657.7,2657.2,0.7504]
[1730906494795,3.76268,2657.7,2657.3,0.04636246]
[1730906495085,3.76282,2657.6,2657.2,0.7504]
[1730906495292,3.76293,2657.5,2657.4,0.04624483]
[1730906495452,3.76307,2657.4,2657.3,0.04630052]
[1730906495798,3.76315,2657.4,2656.7,0.7818]
[1730906495954,3.76315,2657.4,2656.7,4.54586]
[1730906496155,3.76315,2657.4,2656.8,0.04679587]
[1730906496363,3.76293,2657.5,2656.8,3.81070587]
[1730906496668,3.76293,2657.5,2656.8,3.88597945]
[1730906496866,3.76336,2657.2,2656.8,0.04679587]
[1730906497377,3.76311,2657.4,2656.8,0.04679587]
[1730906497586,3.76289,2657.6,2656.8,3.81060587]
[1730906497757,3.76289,2657.6,2656.9,3.76377]
[1730906497953,3.76224,2658.0,2657.0,0.04656054]
[1730906498155,3.32,2658.7,2657.8,0.7718]
[1730906498413,3.76121,2658.8,2658.0,3.76214]
[1730906498692,3.76118,2658.8,2658.0,3.76214]
[1730906498857,3.76124,2658.7,2658.1,0.04474468]
[1730906499059,3.76138,2658.6,2658.1,0.04474468]
[1730906499651,7.52289,2658.6,2658.1,0.04474468]
[1730906499854,3.76194,2658.2,2658.1,0.04474468]
[1730906500165,3.76194,2658.2,2657.4,3.76299]
[1730906500166,3.76228,2658.0,2657.5,0.7917]
[1730906500378,3.76228,2658.0,2657.6,0.04444306]
[1730906500580,3.76151,2658.5,2657.6,0.04444306]
[1730906500581,3.76265,2657.7,2657.6,0.04444306]
[1730906500901,0.7557,2658.4,2657.2,3.76327]
[1730906500902,3.76227,2658.0,2657.2,3.76327]
[1730906501097,3.76227,2658.0,2657.6,0.04414697]
[1730906501284,3.762,2658.2,2657.5,3.76281]
[1730906501488,3.76218,2658.1,2657.7,0.04430802]
[1730906501693,3.76218,2658.1,2657.6,0.04308438]
[1730906501900,3.7621,2658.1,2657.8,0.04297492]
[1730906502101,3.762,2658.2,2657.7,0.04312349]
[1730906502273,3.76143,2658.6,2657.9,0.86121647]
[1730906502474,4.54548,2658.8,2657.9,4.58065]
[1730906502814,3.76138,2658.6,2658.0,3.80504984]
[1730906503014,3.7619,2658.3,2658.0,0.04282984]
[1730906503184,3.76188,2658.3,2658.0,0.04282984]
[1730906503376,3.7617,2658.4,2658.0,0.04282984]
[1730906504122,3.7618,2658.4,2658.0,0.04282984]
[1730906504427,3.76174,2658.4,2657.7,3.76264]
[1730906504605,4.54547,2658.8,2657.9,3.76234]
[1730906504804,3.76081,2659.0,2657.9,3.76234]
[1730906505008,3.76081,2659.0,2658.0,0.04273434]
[1730906505009,3.76146,2658.6,2658.0,0.04273434]
[1730906505471,3.76167,2658.4,2657.8,3.76248]
[1730906505978,3.76167,2658.4,2657.9,0.0426404]
[1730906506176,3.76145,2658.6,2657.8,0.07524656]
[1730906506384,3.76145,2658.6,2658.0,3.76221]
[1730906506575,7.52291,2658.6,2658.1,0.04260763]
[1730906506791,3.76145,2658.6,2658.1,0.04260763]
[1730906507126,0.376145,2658.6,2657.5,0.8131]
[1730906507308,3.7618,2658.3,2658.2,0.04275618]
[1730906507506,0.7949,2658.8,2657.5,0.8131]
[1730906507691,3.76229,2658.0,2657.5,0.8131]
[1730906508127,3.76229,2658.0,2657.6,0.04285534]
[1730906508320,0.7949,2658.8,2657.6,0.04285534]
[1730906508490,3.76177,2658.4,2657.8,3.76242]
[1730906508890,3.76177,2658.4,2657.9,0.04285905]
[1730906509228,3.76176,2658.4,2657.9,0.04285905]
[1730906509415,3.76186,2658.3,2657.9,0.04285905]
[1730906509606,3.76186,2658.3,2657.7,3.76264]
[1730906509819,3.76186,2658.3,2657.8,0.04257415]
[1730906509980,3.76144,2658.6,2657.9,3.76224]
[1730906510318,0.455634,2658.6,2658.0,0.04246283]
[1730906510518,3.76179,2658.4,2658.0,0.04246283]
[1730906510704,3.76179,2658.4,2657.8,3.76251]
[1730906510890,4.217014,2658.6,2658.1,0.04246909]
[1730906511090,4.469131,2658.9,2658.3,3.76173]
[1730906511311,4.469131,2658.9,2658.4,3.76163]
[1730906511513,0.708081,2658.9,2658.4,3.8039631]
[1730906511681,4.469101,2658.9,2658.4,0.0423331]
[1730906512191,4.469101,2658.9,2658.5,3.80330782]
[1730906512192,0.708081,2658.9,2658.5,3.80330782]
[1730906512527,3.32,2659.1,2658.7,3.76114]
[1730906512732,3.76042,2659.3,2658.7,3.76114]
[1730906513019,3.7604,2659.3,2658.7,7.52231]
[1730906513227,0.833715,2659.3,2658.7,3.7611]
[1730906513523,3.76024,2659.4,2658.8,0.04175134]
[1730906513729,3.76051,2659.3,2658.8,0.04175134]
[1730906513931,3.76067,2659.1,2658.8,0.04175134]
[1730906514082,4.512788,2659.1,2658.5,3.76143]
[1730906514283,3.76081,2659.0,2658.9,0.0417593]
[1730906514497,0.752118,2659.1,2658.2,0.752]
[1730906514695,4.5766,2659.5,2658.9,0.0417593]
[1730906514901,3.695962,2659.9,2659.3,3.76037]
[1730906514902,3.32,2659.9,2659.3,3.76037]
[1730906515086,0.707932,2659.9,2659.4,3.76024]
[1730906515286,0.707932,2659.9,2659.4,3.80036063]
[1730906515529,7.51946,2659.8,2659.4,0.04012063]
[1730906515713,3.7597,2659.8,2659.4,0.04012063]
[1730906515896,3.7597,2659.8,2659.2,0.7561]
[1730906516101,3.75949,2660.0,2659.5,0.04001869]
[1730906516302,0.375949,2659.9,2659.2,0.7561]
[1730906516717,3.75949,2660.0,2659.2,0.7561]
[1730906516923,3.75957,2659.9,2659.3,3.80068816]
[1730906517306,3.75925,2660.1,2659.3,3.80068816]
[1730906517506,7.51788,2660.4,2659.3,0.04040816]
[1730906517705,3.75891,2660.4,2659.7,3.75973]
[1730906517911,4.213571,2660.3,2659.7,3.75973]
[1730906518236,4.213571,2660.3,2659.8,3.80013226]
[1730906518405,3.75912,2660.2,2659.8,0.04053226]
[1730906518592,3.75912,2660.2,2659.6,3.75986]
[1730906518795,0.454581,2660.3,2659.7,0.04086613]
[1730906519045,7.51892,2660.0,2659.4,3.76017]
[1730906519196,3.75945,2660.0,2659.8,0.04031582]
[1730906519397,3.75945,2660.0,2659.4,3.76017]
[1730906519614,4.511315,2660.0,2659.5,0.04072993]
[1730906519825,0.751865,2660.0,2659.6,3.75993]
[1730906520020,3.7592,2660.2,2659.6,3.75993]
[1730906520240,0.7869,2660.5,2659.9,3.75941]
[1730906520398,3.75895,2660.4,2659.8,3.75963]
[1730906520737,3.75895,2660.4,2659.9,0.04009918]
[1730906521096,3.75898,2660.3,2659.9,0.04009918]
[1730906521500,5.00017,2660.5,2659.9,0.04009918]
[1730906521724,3.7592,2660.2,2659.9,0.04009918]
[1730906521996,3.75934,2660.1,2660.0,0.04039245]
[1730906522191,3.75934,2660.1,2659.6,3.75989]
[1730906522393,3.75934,2660.1,2659.7,0.04059013]
[1730906522830,4.511194,2660.1,2659.7,0.04059013]
[1730906523238,3.7595,2660.0,2659.7,0.04059013]
[1730906523742,3.7595,2660.0,2659.6,3.75996]
[1730906523938,3.75966,2659.9,2659.8,0.04050362]
[1730906524144,3.75968,2659.8,2659.3,3.76036]
[1730906524498,4.2107954,2659.9,2659.2,0.7561]
[1730906524499,3.75989,2659.7,2659.2,0.7561]
[1730906524719,3.76047,2659.3,2658.6,0.0564297]
[1730906524942,4.58828,2659.8,2658.5,0.8245]
[1730906524943,3.76071,2659.1,2658.5,0.8245]
[1730906525094,3.76071,2659.1,2658.6,7.52266]
[1730906525299,3.76071,2659.1,2658.6,3.76129]
[1730906525493,0.8286,2659.8,2658.5,0.8245]
[1730906525734,4.58834,2659.8,2659.3,3.76028]
[1730906526041,4.58834,2659.8,2658.7,0.07522868]
[1730906526042,3.75974,2659.8,2659.1,3.76053]
[1730906526331,3.75996,2659.6,2659.1,3.76053]
[1730906526548,3.75996,2659.6,2658.9,3.76086]
[1730906526549,3.76017,2659.5,2658.9,3.76086]
[1730906526839,3.76047,2659.3,2658.7,3.7611]
[1730906527047,3.75982,2659.7,2658.8,3.76098]
[1730906527352,3.75971,2659.8,2658.8,3.76098]
[1730906527353,3.76043,2659.3,2658.8,3.76098]
[1730906527500,3.76022,2659.5,2658.6,3.76137]
[1730906527697,3.75963,2659.9,2659.5,3.7601]
[1730906527897,3.75906,2660.3,2659.5,0.7974]
[1730906528114,0.7794,2660.5,2660.0,3.75939]
[1730906528115,4.53817,2660.5,2660.0,3.75939]
[1730906528336,3.75877,2660.5,2659.6,0.07519262]
[1730906528535,3.759,2660.3,2659.8,3.75955]
[1730906528959,3.75942,2660.0,2659.4,3.76017]
[1730906529141,3.75962,2659.9,2659.2,3.76046]
[1730906529351,3.75968,2659.8,2658.5,0.7974]
[1730906529558,3.76089,2659.0,2658.5,0.7974]
[1730906529849,3.76113,2658.8,2658.3,3.7617]
[1730906530057,0.7779,2659.1,2658.2,0.8]
[1730906530225,0.7779,2659.1,2657.9,3.76234]
[1730906530226,3.76119,2658.8,2658.1,3.76198]
[1730906530429,3.76141,2658.6,2658.1,3.76198]
[1730906530628,3.76154,2658.5,2657.9,3.76227]
[1730906530929,3.76141,2658.6,2658.1,3.76208]
[1730906531128,3.76095,2658.9,2658.4,3.76158]
[1730906531532,0.376095,2658.8,2658.1,3.76201]
[1730906531776,4.53864,2659.1,2658.1,3.76201]
[1730906532072,3.76106,2658.9,2658.1,3.76201]
[1730906532275,3.76106,2658.9,2658.3,3.76179]
[1730906532474,3.76129,2658.7,2658.1,3.76201]
[1730906532644,3.76146,2658.6,2658.4,0.03896867]
[1730906532829,4.513735,2658.6,2658.1,3.76201]
[1730906533030,4.513735,2658.6,2658.2,0.03901804]
[1730906533226,3.76146,2658.6,2658.2,0.03901804]
[1730906533444,3.7618,2658.3,2658.2,0.03901804]
[1730906533738,3.76241,2657.9,2657.3,3.76313]
[1730906533935,0.752455,2657.9,2657.1,3.76336]
[1730906534275,3.76279,2657.6,2657.0,0.7667]
[1730906534478,3.76279,2657.6,2657.2,0.03818434]
[1730906534632,3.76279,2657.6,2657.1,0.03827103]
[1730906534975,3.76279,2657.6,2657.2,0.03818434]
[1730906535181,3.76245,2657.9,2657.1,3.76338]
[1730906535359,3.76221,2658.1,2657.6,3.76279]
[1730906535585,4.53277,2658.3,2657.7,0.03795045]
[1730906535586,3.76247,2657.9,2657.7,0.03795045]
[1730906535787,4.138717,2657.9,2657.3,3.76321]
[1730906535981,3.7628,2657.6,2657.4,0.03821044]
[1730906536181,7.52573,2657.6,2657.4,0.03821044]
[1730906536499,3.7628,2657.6,2656.9,3.76369]
[1730906536652,0.376247,2657.9,2657.5,0.03812377]
[1730906536653,4.138617,2657.9,2657.5,0.03812377]
[1730906536854,0.4138617,2657.8,2657.2,3.76328]
[1730906537080,3.76276,2657.7,2657.6,0.03803711]
[1730906537283,3.76276,2657.7,2657.2,3.76328]
[1730906537466,3.76276,2657.7,2657.6,0.03803711]
[1730906537655,3.76307,2657.5,2656.9,3.76378]
[1730906537992,3.76281,2657.6,2656.9,3.76378]
[1730906538202,3.76286,2657.6,2656.8,0.8055]
[1730906538491,3.76286,2657.6,2655.9,0.44853728]
[1730906538492,3.76329,2657.3,2656.7,3.76405]
[1730906538676,3.76344,2657.2,2656.6,7.5283]
[1730906538877,3.76364,2657.0,2656.5,3.76426]
[1730906539080,3.76364,2657.0,2656.1,3.76491]
[1730906539081,3.76395,2656.8,2656.2,7.52941]
[1730906539292,3.76379,2656.9,2656.1,0.76]
[1730906539495,3.76379,2656.9,2656.2,3.76477]
[1730906539680,3.76404,2656.8,2656.2,3.76477]
[1730906539882,4.2263193,2656.9,2656.2,3.7647]
[1730906540083,3.76415,2656.7,2656.0,3.76499]
[1730906540397,0.4625293,2656.9,2655.8,0.00589265]
[1730906540398,0.7963,2656.3,2655.8,0.00589265]
[1730906540570,3.76491,2656.1,2655.8,0.00589265]
[1730906541005,3.7652,2655.9,2655.8,0.00589265]
[1730906541505,4.5615,2655.9,2655.8,0.00589265]
[1730906542013,4.4431,2656.3,2655.8,0.00589265]
[1730906542169,3.76486,2656.2,2655.8,0.00589265]
[1730906543408,0.8331,2656.3,2655.8,0.00589265]
[1730906543725,0.8331,2656.3,2655.9,3.80314761]
[1730906544010,4.59738,2656.6,2656.1,3.7649]
[1730906544216,3.76436,2656.5,2655.9,3.76508]
[1730906544413,6.37783752,2656.6,2656.0,0.03765546]
[1730906544770,3.76454,2656.4,2656.0,0.03765546]
[1730906544965,3.76437,2656.5,2656.0,3.80269546]
[1730906545170,6.37777752,2656.6,2656.1,3.76488]
[1730906545372,3.32,2656.7,2656.2,3.76464]
[1730906545611,3.32,2656.7,2656.2,3.80212198]
[1730906545771,3.32,2656.7,2656.2,0.03748198]
[1730906545973,3.76446,2656.5,2655.9,3.76516]
[1730906546168,0.693,2656.6,2656.0,3.76498]
[1730906546400,7.08407,2656.7,2656.2,3.76476]
[1730906546620,3.76437,2656.5,2656.0,0.03829572]
[1730906546917,3.32,2656.7,2655.8,0.00589265]
[1730906546918,7.08408,2656.7,2655.8,0.00589265]
[1730906547124,0.8158,2657.0,2656.5,3.76432]
[1730906547425,7.584173,2657.1,2656.6,3.80165319]
[1730906547426,0.057003,2657.1,2656.6,3.80165319]
[1730906547586,0.057003,2657.1,2656.8,3.76382]
[1730906547787,0.057003,2657.1,2657.0,3.76364]
[1730906547990,0.057003,2657.1,2656.8,3.76378]
[1730906548233,0.057003,2657.1,2657.0,0.03779945]
[1730906548375,0.057003,2657.1,2656.9,0.03788613]
[1730906548575,3.76364,2657.0,2656.9,0.03788613]
[1730906548777,4.1457043,2657.0,2656.5,3.76433]
[1730906549072,4.1457043,2657.0,2656.9,0.03803359]
[1730906549276,3.76379,2656.9,2656.4,3.76438]
[1730906549506,4.1457043,2657.0,2656.9,0.03800262]
[1730906549717,4.1457043,2657.0,2656.4,7.52877]
[1730906550072,0.3820643,2657.0,2656.5,0.03834944]
[1730906550552,4.1457143,2657.0,2656.5,0.03834944]
[1730906551015,3.76382,2656.9,2656.5,0.03834944]
[1730906551218,4.1458043,2657.0,2656.5,0.03834944]
[1730906551438,0.057003,2657.1,2657.0,3.76364]
[1730906551583,0.7781,2658.4,2657.6,3.76272]
[1730906551775,3.76188,2658.3,2657.7,3.76259]
[1730906551976,0.7781,2658.4,2657.8,3.76246]
[1730906552279,0.7781,2658.4,2657.9,3.76224]
[1730906552507,4.53977,2658.4,2657.8,3.76246]
[1730906552711,0.7781,2658.4,2658.0,0.03666335]
[1730906552892,7.90493519,2658.8,2657.9,0.03693567]
[1730906553202,3.76188,2658.3,2658.1,0.03659665]
[1730906553520,0.7943,2658.2,2658.0,0.03653911]
[1730906553717,4.217778,2658.1,2657.5,3.76291]
[1730906554126,3.76245,2657.9,2657.2,7.52651]
[1730906554350,0.455618,2658.1,2657.0,3.76355]
[1730906554351,3.76284,2657.6,2657.0,3.76355]
[1730906554664,1.161484,2657.5,2657.1,3.76336]
[1730906554810,0.7852,2657.9,2656.7,3.76399]
[1730906555141,0.7852,2657.9,2656.6,0.7898]
[1730906555142,3.76304,2657.5,2657.0,3.76356]
[1730906555302,3.76265,2657.7,2657.1,3.76348]
[1730906555503,0.454785,2657.7,2656.7,0.07527355]
[1730906558251,3.76222,2658.0,2657.4,3.76298]
[1730906558539,3.76222,2658.0,2657.3,3.76311]
[1730906558540,3.76236,2658.0,2657.1,8.35831]
[1730906558748,0.376236,2657.9,2657.1,0.8315]
[1730906558952,4.138676,2657.9,2657.3,3.76311]
[1730906559103,0.376236,2657.9,2657.4,3.76299]
[1730906559307,4.138606,2657.9,2657.4,3.79986574]
[1730906559613,0.376236,2657.9,2657.4,3.79985574]
[1730906559814,3.76216,2658.1,2657.5,3.76291]
[1730906560018,3.76196,2658.2,2657.6,3.79951087]
[1730906560317,3.76224,2658.0,2657.6,0.03680087]
[1730906560504,4.589611,2658.2,2657.6,3.79958087]
[1730906560708,0.827591,2658.2,2657.6,3.76278]
[1730906560937,0.827591,2658.2,2657.7,3.79914763]
[1730906561247,10.72063519,2658.6,2657.9,3.76236]
[1730906561551,0.7565,2658.8,2658.4,3.76158]
[1730906561844,3.32,2658.9,2658.5,3.76149]
[1730906562044,3.32,2658.9,2658.5,0.03567697]
[1730906562220,4.58249,2659.5,2658.5,0.8247]
[1730906562418,4.958509,2659.5,2658.9,3.76093]
[1730906562625,4.958509,2659.5,2659.0,0.0350155]
[1730906562849,1.198319,2659.5,2659.1,3.76056]
[1730906563142,3.75971,2659.8,2659.2,3.7955481]
[1730906563707,7.89594,2659.9,2659.2,3.7954981]
[1730906564050,3.7599,2659.7,2659.2,0.0350281]
[1730906564419,3.32,2659.9,2659.3,3.76028]
[1730906564629,3.75879,2660.5,2659.8,3.75968]
[1730906564950,3.75885,2660.4,2659.9,0.03429451]
[1730906565567,3.75939,2660.0,2659.9,0.03429451]
[1730906565704,3.75969,2659.8,2659.2,4.55656]
[1730906565909,3.75992,2659.7,2659.2,0.7961]
[1730906566142,3.75992,2659.7,2658.8,3.76105]
[1730906566143,0.751961,2659.6,2659.3,0.03444599]
[1730906566347,3.7601,2659.5,2659.3,0.03444599]
[1730906566527,3.75986,2659.7,2659.0,3.76079]
[1730906566739,4.213576,2659.7,2659.0,3.76079]
[1730906567030,0.453716,2659.7,2659.2,3.76044]
[1730906567243,0.453716,2659.7,2659.3,0.03438417]
[1730906567424,0.453716,2659.7,2659.2,3.76044]
[1730906567608,0.453716,2659.7,2659.0,3.76076]
[1730906567609,0.4213446,2659.6,2659.0,3.76076]
[1730906568004,3.76019,2659.5,2658.8,3.76101]
[1730906568219,3.76019,2659.5,2658.6,4.56522]
[1730906568220,3.7601,2659.5,2658.6,4.56522]
[1730906568561,3.76089,2659.0,2658.4,3.81801606]
[1730906568714,0.7573,2659.4,2658.7,0.03549286]
[1730906568715,3.76061,2659.2,2658.7,0.03549286]
[1730906568915,3.76082,2659.0,2658.4,3.81801606]
[1730906569156,3.76105,2658.9,2658.8,0.03528057]
[1730906569312,3.7612,2658.8,2658.4,0.05642606]